bitfinex/quotes_SOLUSD_20250609
["timestamp","ask_amount","ask_price","bid_price","bid_amount"]
[1749432591821,12.79907391,152.62,152.58,46.59387505]
[1749432592029,4.88113932,152.62,152.58,54.51180964]
[1749432592230,12.79907391,152.62,152.58,54.51180964]
[1749432593542,7.91793459,152.61,152.58,40.04]
[1749432599840,8.07635935,152.63,152.58,40.04]
[1749432600041,12.81043854,152.62,152.58,40.04]
[1749432600234,7.91793459,152.61,152.58,40.04]
[1749432600444,7.91793459,152.6,152.58,40.04]
[1749432601047,8.07635935,152.63,152.58,40.04]
[1749432601048,7.91793459,152.61,152.58,40.04]
[1749432601244,7.91793459,152.6,152.58,40.04]
[1749432602049,7.91793459,152.61,152.58,40.04]
[1749432602634,12.81162365,152.61,152.58,40.04]
[1749432602831,7.91793459,152.6,152.58,40.04]
[1749432603935,7.91793459,152.61,152.58,40.04]
[1749432604136,14.46946063,152.64,152.59,7.91793459]
[1749432604341,4.89919175,152.63,152.59,7.91793459]
[1749432604538,4.89919175,152.62,152.59,7.91793459]
[1749432604743,14.46946063,152.64,152.59,7.91793459]
[1749432604929,12.81824981,152.63,152.59,7.91793459]
[1749432605127,4.90031522,152.62,152.59,7.91793459]
[1749432605354,7.91793459,152.63,152.59,7.91793459]
[1749432605557,4.9002742,152.62,152.59,7.91793459]
[1749432605767,14.46946063,152.64,152.59,7.91793459]
[1749432605933,12.81875719,152.63,152.58,40.04]
[1749432606139,4.9008226,152.62,152.58,47.95793459]
[1749432606338,7.91793459,152.63,152.58,47.95793459]
[1749432606554,4.90102059,152.62,152.58,47.95793459]
[1749432606753,7.91793459,152.63,152.58,47.95793459]
[1749432607037,4.90173813,152.62,152.58,46.59381414]
[1749432607241,12.36885298,152.63,152.58,58.96266712]
[1749432607440,4.90158961,152.62,152.58,58.96266712]
[1749432607759,12.36885298,152.63,152.58,58.96266712]
[1749432607962,4.90265135,152.62,152.58,58.96266712]
[1749432608262,12.36885298,152.63,152.58,58.96266712]
[1749432608445,4.90264122,152.62,152.58,58.96266712]
[1749432608644,12.36885298,152.63,152.58,58.96266712]
[1749432608843,4.90259478,152.62,152.58,58.96266712]
[1749432609045,18.92075067,152.63,152.58,58.96266712]
[1749432609250,17.27285715,152.62,152.58,40.04]
[1749432609452,12.36885298,152.62,152.58,46.5938299]
[1749432609761,12.36885298,152.63,152.58,58.96268288]
[1749432610071,4.90559794,152.62,152.59,37.71401835]
[1749432610233,18.92036515,152.64,152.59,37.71401835]
[1749432610437,4.90569579,152.63,152.59,37.71401835]
[1749432610638,4.90569579,152.62,152.59,37.71401835]
[1749432610852,18.92036515,152.64,152.59,37.71401835]
[1749432611059,4.90766546,152.63,152.59,37.71401835]
[1749432611362,4.90766546,152.62,152.59,18.79181043]
[1749432611657,4.90857117,152.61,152.59,18.79181043]
[1749432611961,18.92066704,152.63,152.59,18.79181043]
[1749432612137,4.90857055,152.62,152.59,18.79181043]
[1749432612333,4.90857055,152.61,152.59,18.79181043]
[1749432612564,18.92066704,152.63,152.59,18.79181043]
[1749432612738,4.90897384,152.62,152.59,25.34511746]
[1749432612939,8.33333333,152.67,152.63,0.28432314]
[1749432613159,8.33333333,152.67,152.65,12.36885298]
[1749432613365,8.33333333,152.67,152.66,12.36885298]
[1749432613567,13.24078381,152.67,152.66,12.36885298]
[1749432613765,8.33333333,152.67,152.66,12.36885298]
[1749432614260,8.33333333,152.67,152.66,31.16066341]
[1749432614462,8.33333333,152.67,152.64,46.57122176]
[1749432614669,8.33333333,152.67,152.65,18.79181043]
[1749432615371,8.33333333,152.67,152.65,31.16066341]
[1749432620558,8.33333333,152.67,152.65,18.79181043]
[1749432620871,8.33333333,152.67,152.65,31.16066341]
[1749432621166,8.33333333,152.67,152.64,52.38885298]
[1749432623262,8.33333333,152.67,152.65,12.36885298]
[1749432626574,8.33333333,152.67,152.64,52.38885298]
[1749432627265,12.36885298,152.66,152.59,0.14216157]
[1749432627450,14.88352009,152.67,152.59,0.14216157]
[1749432627451,12.36885298,152.65,152.61,12.36885298]
[1749432628165,12.36885298,152.66,152.62,12.36885298]
[1749432628555,14.88352009,152.67,152.63,12.36885298]
[1749432628756,8.33333333,152.67,152.65,12.36885298]
[1749432629776,8.33333333,152.67,152.66,12.36885298]
[1749432630786,8.33333333,152.67,152.66,18.91935736]
[1749432630943,8.33333333,152.67,152.66,37.71116779]
[1749432632276,8.33333333,152.67,152.66,31.16066341]
[1749432632581,8.33333333,152.67,152.66,37.71116779]
[1749432633780,8.33333333,152.67,152.66,31.16066341]
[1749432634380,8.33333333,152.67,152.66,12.36885298]
[1749432634682,8.33333333,152.67,152.64,10.34]
[1749432634683,8.33333333,152.67,152.64,41.35850184]
[1749432634863,8.33333333,152.67,152.64,28.98964886]
[1749432635063,8.33333333,152.67,152.64,41.35850184]
[1749432635889,8.33333333,152.67,152.64,47.90976895]
[1749432636052,8.33333333,152.67,152.65,12.36885298]
[1749432636478,8.33333333,152.67,152.66,12.36885298]
[1749432636978,12.36885298,152.7,152.66,12.36885298]
[1749432637192,18.91734088,152.71,152.66,12.36885298]
[1749432639073,18.91734088,152.71,152.66,18.91927758]
[1749432639578,18.91734088,152.71,152.66,12.36885298]
[1749432640569,18.91734088,152.71,152.67,12.36885298]
[1749432640967,18.91734088,152.71,152.66,12.51101455]
[1749432641370,8.19173537,152.73,152.69,12.36885298]
[1749432641787,20.56058835,152.73,152.69,12.36885298]
[1749432643377,14.01305298,152.73,152.69,18.91805127]
[1749432645569,20.56056698,152.73,152.69,12.36885298]
[1749432646587,18.91680807,152.72,152.68,12.36885298]
[1749432646784,18.91680807,152.72,152.67,65.19961162]
[1749432646785,12.36885298,152.71,152.67,58.64964886]
[1749432646976,12.36885298,152.71,152.66,71.16066341]
[1749432647280,12.36885298,152.71,152.67,12.36885298]
[1749432648185,18.91724746,152.71,152.66,77.56895995]
[1749432648481,18.91724746,152.71,152.66,58.64964886]
[1749432648684,12.36885298,152.7,152.66,31.01850184]
[1749432649889,18.91773289,152.7,152.66,31.01850184]
[1749432650395,6.54887991,152.7,152.66,31.01850184]
[1749432651489,18.91773289,152.7,152.66,31.01850184]
[1749432652800,12.36885298,152.71,152.67,12.36885298]
[1749432653182,6.54793085,152.72,152.67,12.36885298]
[1749432653380,12.36885298,152.71,152.67,12.36885298]
[1749432654594,12.36885298,152.71,152.67,18.91886427]
[1749432654974,18.91721639,152.71,152.67,12.36885298]
[1749432656689,18.91721639,152.71,152.66,37.56885201]
[1749432658079,23.81597615,152.71,152.66,37.56885201]
[1749432658277,18.91721639,152.71,152.66,37.56885201]
[1749432658478,23.81597615,152.71,152.66,37.56885201]
[1749432658775,18.91721639,152.71,152.66,37.56885201]
[1749432658976,17.26761274,152.71,152.67,12.36885298]
[1749432659177,12.36885298,152.71,152.67,12.36885298]
[1749432659580,18.9168822,152.72,152.67,12.36885298]
[1749432660595,6.54802922,152.72,152.67,18.91886698]
[1749432660903,18.9168822,152.72,152.67,18.91886698]
[1749432661503,6.54802922,152.72,152.68,12.36885298]
[1749432661903,18.84565298,152.74,152.69,12.36885298]
[1749432662207,4.89806379,152.73,152.7,12.36885298]
[1749432662704,12.36885298,152.74,152.7,12.36885298]
[1749432662890,12.36885298,152.75,152.7,12.36885298]
[1749432663097,4.89718776,152.74,152.71,12.36885298]
[1749432663405,4.89718776,152.75,152.71,12.36885298]
[1749432663598,4.89718776,152.74,152.71,12.36885298]
[1749432663805,4.89718776,152.75,152.71,12.36885298]
[1749432663979,4.89718776,152.74,152.71,12.36885298]
[1749432664180,4.89718776,152.75,152.71,12.36885298]
[1749432664483,4.89718776,152.74,152.71,12.36885298]
[1749432664685,165.01515808,152.76,152.71,12.36885298]
[1749432664686,4.89718776,152.75,152.71,12.36885298]
[1749432664884,4.89571507,152.74,152.71,12.36885298]
[1749432665100,4.89571507,152.75,152.71,12.36885298]
[1749432665301,165.01515808,152.76,152.71,12.36885298]
[1749432665493,4.89521029,152.75,152.71,12.36885298]
[1749432665693,12.36885298,152.75,152.71,12.36885298]
[1749432666034,12.36885298,152.75,152.7,12.51101455]
[1749432666998,18.91581153,152.75,152.7,19.05979676]
[1749432669095,146.1,152.76,152.71,12.36885298]
[1749432669399,6.54459862,152.8,152.75,12.36885298]
[1749432669601,20.52706732,152.81,152.77,12.36885298]
[1749432669788,4.8936477,152.79,152.78,12.36885298]
[1749432669980,4.8936477,152.81,152.78,12.36885298]
[1749432670401,4.8936477,152.81,152.79,12.36885298]
[1749432670602,4.8936477,152.81,152.78,12.36885298]
[1749432670801,12.36885298,152.8,152.76,31.01850184]
[1749432670987,12.36885298,152.8,152.75,52.34885298]
[1749432671183,4.8936477,152.81,152.78,12.36885298]
[1749432671409,4.8936477,152.81,152.79,2.43563327]
[1749432671609,4.8936477,152.81,152.78,12.36885298]
[1749432671800,11.43779444,152.81,152.78,12.36885298]
[1749432672311,11.43779444,152.81,152.77,31.01850184]
[1749432672604,146.1,152.83,152.78,14.80511886]
[1749432672805,12.36885298,152.83,152.78,12.36885298]
[1749432673105,22.89988834,152.84,152.77,26.0]
[1749432673284,12.36885298,152.8,152.77,26.0]
[1749432673985,12.36885298,152.8,152.75,31.01850184]
[1749432674298,12.36885298,152.78,152.76,2.42745995]
[1749432674497,12.36885298,152.78,152.75,39.98]
[1749432674812,12.36885298,152.77,152.74,36.32]
[1749432675108,12.36885298,152.77,152.75,2.42766593]
[1749432675310,12.36885298,152.77,152.74,36.32]
[1749432675487,12.36885298,152.77,152.75,2.42766434]
[1749432675688,12.36885298,152.77,152.74,36.32]
[1749432675907,18.91483868,152.77,152.74,10.32]
[1749432676095,12.36885298,152.76,152.72,12.36885298]
[1749432676300,12.36885298,152.76,152.72,52.32885298]
[1749432676488,18.91483868,152.77,152.73,2.4276183]
[1749432676695,18.91483868,152.77,152.72,52.32885298]
[1749432676894,18.91483868,152.77,152.73,2.42690509]
[1749432677196,18.91483868,152.77,152.72,52.32885298]
[1749432677396,18.91483868,152.77,152.73,2.42667005]
[1749432677595,18.91483868,152.77,152.72,52.32885298]
[1749432677804,18.91483868,152.77,152.73,2.42654873]
[1749432678004,18.91483868,152.77,152.74,2.42647396]
[1749432678312,18.91483868,152.77,152.72,58.8767504]
[1749432678516,6.5459857,152.77,152.73,2.42485256]
[1749432678715,18.91483868,152.77,152.72,58.8767504]
[1749432679101,18.91483868,152.77,152.73,2.42483311]
[1749432679418,18.91483868,152.77,152.72,58.8767504]
[1749432679610,18.91483868,152.77,152.73,2.42386905]
[1749432679812,18.91483868,152.77,152.72,58.8767504]
[1749432680307,18.91483868,152.77,152.72,52.32885298]
[1749432680508,18.91483868,152.77,152.73,2.42366832]
[1749432680699,6.5459857,152.77,152.72,52.32885298]
[1749432680906,12.36885298,152.76,152.73,2.42403818]
[1749432681092,12.36885298,152.76,152.72,52.32885298]
[1749432681292,12.36885298,152.76,152.73,2.42412608]
[1749432681517,12.36885298,152.75,152.72,39.96]
[1749432682820,12.36885298,152.77,152.73,33.44255753]
[1749432682992,7.8629,152.8,152.74,2.4234413]
[1749432683197,12.36885298,152.78,152.75,2.4232375]
[1749432683405,12.36885298,152.78,152.74,12.36885298]
[1749432683613,12.36885298,152.78,152.75,2.42326314]
[1749432683800,12.36885298,152.78,152.74,18.64964886]
[1749432684311,12.36885298,152.78,152.75,2.42261235]
[1749432684506,12.36885298,152.78,152.74,18.64964886]
[1749432684711,12.36885298,152.78,152.75,2.42302477]
[1749432684917,12.36885298,152.78,152.74,18.64964886]
[1749432685211,12.36885298,152.78,152.75,2.42333786]
[1749432685420,12.36885298,152.78,152.74,18.64964886]
[1749432685800,18.91421314,152.78,152.75,2.42283458]
[1749432686021,18.91421314,152.78,152.74,18.64964886]
[1749432686227,18.91421314,152.78,152.75,2.42259503]
[1749432686528,18.91421314,152.78,152.74,18.64964886]
[1749432687013,18.91421314,152.78,152.75,2.42259691]
[1749432687219,18.91421314,152.78,152.74,18.64964886]
[1749432687422,18.91421314,152.78,152.75,2.42278743]
[1749432687739,18.91421314,152.78,152.74,18.64964886]
[1749432688042,12.36885298,152.78,152.74,37.56543149]
[1749432688210,12.36885298,152.78,152.75,2.42297598]
[1749432688551,12.36885298,152.78,152.74,37.56543149]
[1749432688909,12.36885298,152.78,152.75,2.42215511]
[1749432689111,12.36885298,152.78,152.74,37.56543149]
[1749432689317,12.36885298,152.78,152.75,2.42338869]
[1749432689518,12.36885298,152.78,152.74,37.56543149]
[1749432689825,18.9138617,152.79,152.75,2.42303825]
[1749432690034,18.9138617,152.79,152.74,37.56543149]
[1749432690218,18.9138617,152.79,152.75,2.42289302]
[1749432690417,18.9138617,152.79,152.74,37.56543149]
[1749432690620,12.36885298,152.79,152.75,2.42272746]
[1749432690818,12.36885298,152.79,152.74,37.56543149]
[1749432691014,12.36885298,152.81,152.76,12.36885298]
[1749432691215,12.36885298,152.77,152.73,18.64964886]
[1749432691414,12.36885298,152.75,152.73,18.64964886]
[1749432691736,12.36885298,152.8,152.71,26.0]
[1749432691737,12.36885298,152.74,152.71,26.0]
[1749432691917,12.36885298,152.73,152.7,10.32]
[1749432692238,12.36885298,152.73,152.71,2.42346563]
[1749432692534,12.36885298,152.73,152.7,10.32]
[1749432692730,12.36885298,152.73,152.71,2.42366624]
[1749432692908,12.36885298,152.73,152.7,10.32]
[1749432693111,12.36885298,152.73,152.71,2.42370488]
[1749432693439,12.36885298,152.73,152.7,10.32]
[1749432693828,12.36885298,152.73,152.71,2.42368539]
[1749432694021,12.36885298,152.73,152.7,10.32]
[1749432694219,12.36885298,152.73,152.71,2.42368537]
[1749432694423,12.36885298,152.73,152.7,10.32]
[1749432695642,12.36885298,152.71,152.69,26.0]
[1749432696326,12.36885298,152.72,152.69,26.0]
[1749432698448,18.91679419,152.72,152.69,26.0]
[1749432699640,12.36885298,152.72,152.69,26.0]
[1749432705533,18.91681296,152.72,152.7,2.42623377]
[1749432705718,18.91681296,152.72,152.69,26.0]
[1749432705917,18.91681296,152.72,152.7,2.42649894]
[1749432706124,18.91681296,152.72,152.69,26.0]
[1749432707756,12.36885298,152.72,152.69,26.0]
[1749432711964,12.36885298,152.72,152.69,32.54918293]
[1749432712145,12.36885298,152.73,152.69,44.91803591]
[1749432712348,12.36885298,152.74,152.7,12.36885298]
[1749432712546,18.91566767,152.75,152.71,2.42554724]
[1749432712757,18.91566767,152.75,152.7,12.36885298]
[1749432712960,18.91566767,152.75,152.71,2.42539819]
[1749432713266,18.91566767,152.75,152.7,12.36885298]
[1749432713453,18.91566767,152.75,152.71,2.42529913]
[1749432713656,18.91566767,152.75,152.7,18.91760981]
[1749432714169,12.36885298,152.74,152.69,44.91801333]
[1749432714381,12.36885298,152.74,152.7,2.42542705]
[1749432714583,12.36885298,152.74,152.71,2.42542059]
[1749432714772,12.36885298,152.74,152.69,44.91801333]
[1749432715066,12.36885298,152.74,152.7,2.42538876]
[1749432715265,12.36885298,152.74,152.71,2.42538644]
[1749432715475,12.36885298,152.74,152.69,44.91801333]
[1749432715649,6.54681469,152.75,152.7,14.79414621]
[1749432715966,12.36885298,152.74,152.71,2.4251759]
[1749432716178,12.36885298,152.74,152.7,12.36885298]
[1749432716858,12.36885298,152.74,152.71,2.42478801]
[1749432717065,12.36885298,152.74,152.7,12.36885298]
[1749432717241,12.36885298,152.74,152.71,2.42484559]
[1749432717564,12.36885298,152.74,152.7,18.91760792]
[1749432718165,12.36885298,152.74,152.71,2.43100455]
[1749432718370,12.36885298,152.74,152.7,18.91760792]
[1749432718879,12.36885298,152.74,152.71,2.43080503]
[1749432719064,12.36885298,152.74,152.7,18.91760792]
[1749432719376,12.36885298,152.74,152.71,2.43073053]
[1749432719673,12.36885298,152.74,152.7,18.91760792]
[1749432720259,12.36885298,152.74,152.71,2.43044382]
[1749432720457,18.9159341,152.74,152.7,12.36885298]
[1749432720653,18.9159341,152.74,152.69,32.54907938]
[1749432720858,12.36885298,152.73,152.7,2.43077583]
[1749432721060,12.36885298,152.73,152.71,2.43040371]
[1749432721272,12.36885298,152.73,152.72,2.43046027]
[1749432721453,6.54664484,152.75,152.7,2.43071439]
[1749432721652,12.36885298,152.73,152.69,44.91793236]
[1749432721852,12.36885298,152.73,152.7,2.43058658]
[1749432722156,12.36885298,152.74,152.71,2.43014157]
[1749432722370,12.36885298,152.74,152.72,2.43014157]
[1749432722570,12.36885298,152.74,152.7,12.36885298]
[1749432723092,12.36885298,152.75,152.71,2.42975624]
[1749432723383,1.5434,152.78,152.72,12.36885298]
[1749432723573,12.36885298,152.77,152.73,2.42957144]
[1749432723784,12.36885298,152.76,152.72,12.36885298]
[1749432723968,12.36885298,152.76,152.73,2.42948148]
[1749432724164,12.36885298,152.76,152.72,18.64964886]
[1749432724365,12.36885298,152.76,152.73,2.42897884]
[1749432724564,12.36885298,152.76,152.72,18.64964886]
[1749432724759,12.36885298,152.76,152.73,2.42938814]
[1749432725074,12.36885298,152.76,152.71,18.91690264]
[1749432725283,12.36885298,152.76,152.72,2.42930111]
[1749432725469,12.36885298,152.75,152.71,12.36885298]
[1749432725669,12.36885298,152.75,152.72,2.43931113]
[1749432725888,12.36885298,152.74,152.73,2.43938847]
[1749432726065,12.36885298,152.74,152.7,12.36885298]
[1749432726265,12.36885298,152.74,152.71,2.43973279]
[1749432726486,12.36885298,152.73,152.69,45.06015137]
[1749432726688,12.36885298,152.73,152.7,2.43985847]
[1749432726883,12.36885298,152.73,152.69,45.06015137]
[1749432727081,12.36885298,152.73,152.7,2.43964143]
[1749432727382,12.36885298,152.73,152.71,2.43986831]
[1749432727578,12.36885298,152.73,152.69,45.06015137]
[1749432727778,12.36885298,152.73,152.7,2.43991615]
[1749432727970,12.36885298,152.73,152.71,2.43991615]
[1749432728170,12.36885298,152.73,152.72,2.43991615]
[1749432728373,12.36885298,152.73,152.72,2.43923015]
[1749432728601,12.36885298,152.73,152.69,38.36885298]
[1749432728767,12.36885298,152.73,152.7,2.43952239]
[1749432728973,12.36885298,152.73,152.71,2.43963674]
[1749432729274,12.36885298,152.73,152.72,2.43945799]
[1749432729582,12.36885298,152.73,152.69,38.36885298]
[1749432729782,12.36885298,152.73,152.7,2.43961772]
[1749432729982,12.36885298,152.71,152.66,50.28]
[1749432730166,12.36885298,152.71,152.67,26.0]
[1749432730362,12.36885298,152.7,152.68,2.44071699]
[1749432730589,12.36885298,152.7,152.69,2.4408768]
[1749432730791,12.36885298,152.7,152.69,2.44087667]
[1749432731088,12.36885298,152.7,152.69,2.44100785]
[1749432731301,12.36885298,152.7,152.69,2.4411909]
[1749432731492,12.36885298,152.7,152.69,2.441072]
[1749432731796,12.36885298,152.7,152.67,26.0]
[1749432731983,12.36885298,152.7,152.68,2.44093191]
[1749432732184,12.36885298,152.7,152.69,2.44108881]
[1749432732371,12.36885298,152.7,152.69,2.44108752]
[1749432732689,18.91764145,152.7,152.69,2.44139302]
[1749432732889,18.91764145,152.7,152.66,10.32]
[1749432733067,18.91764145,152.7,152.67,2.44152441]
[1749432733068,12.36885298,152.69,152.67,2.44152441]
[1749432733267,12.36885298,152.69,152.65,26.0]
[1749432733502,12.36885298,152.69,152.66,2.44179397]
[1749432733790,12.36885298,152.69,152.67,2.44190898]
[1749432733994,12.36885298,152.69,152.68,2.44153594]
[1749432734289,12.36885298,152.69,152.68,2.44147755]
[1749432734774,12.36885298,152.69,152.65,26.0]
[1749432734968,12.36885298,152.69,152.66,2.44156886]
[1749432735174,12.36885298,152.69,152.67,2.44271876]
[1749432735378,12.36885298,152.69,152.65,26.0]
[1749432735679,12.36885298,152.69,152.66,2.44367547]
[1749432735880,12.36885298,152.69,152.67,2.44357287]
[1749432736189,12.36885298,152.69,152.64,18.92005034]
[1749432736399,12.36885298,152.69,152.65,2.44316113]
[1749432736583,12.36885298,152.69,152.66,2.44317066]
[1749432736890,12.36885298,152.69,152.65,12.36885298]
[1749432737095,12.36885298,152.69,152.66,2.44333706]
[1749432737392,12.36885298,152.69,152.64,6.55119736]
[1749432737605,12.36885298,152.69,152.65,14.81249214]
[1749432737794,12.36885298,152.69,152.65,12.36885298]
[1749432737972,12.36885298,152.69,152.66,2.44401947]
[1749432738170,12.36885298,152.69,152.67,2.4439423]
[1749432738421,17.90217021,152.73,152.64,6.55119736]
[1749432738422,11.44594213,152.72,152.66,12.36885298]
[1749432738575,12.36885298,152.71,152.67,2.44273837]
[1749432738782,12.36885298,152.7,152.68,2.44265746]
[1749432739086,12.36885298,152.69,152.64,18.92021566]
[1749432739672,12.36885298,152.69,152.65,4.86881348]
[1749432739893,12.36885298,152.69,152.65,2.43440684]
[1749432740091,12.36885298,152.69,152.64,18.92021566]
[1749432740294,6.54928282,152.69,152.66,2.43447163]
[1749432740601,12.36885298,152.67,152.66,2.43447163]
[1749432740974,4.89784085,152.68,152.66,2.43447163]
[1749432741176,12.36885298,152.68,152.66,2.43447163]
[1749432741370,6.54928282,152.69,152.66,2.43447163]
[1749432741578,21.50924085,152.7,152.66,2.43447163]
[1749432741579,33.87809383,152.7,152.66,2.43447163]
[1749432741795,12.36885298,152.69,152.66,2.43447163]
[1749432742188,18.9181887,152.69,152.66,2.43447163]
[1749432743403,18.9181887,152.69,152.67,2.43446587]
[1749432743599,18.9181887,152.69,152.66,2.43447163]
[1749432743802,12.36885298,152.69,152.66,2.43447163]
[1749432744302,12.36885298,152.69,152.66,8.98474049]
[1749432745002,12.36885298,152.69,152.67,2.4348746]
[1749432745207,12.36885298,152.69,152.66,8.98474049]
[1749432745698,12.36885298,152.69,152.67,2.43493715]
[1749432745907,12.36885298,152.69,152.66,8.98474049]
[1749432746084,12.36885298,152.69,152.67,2.43495136]
[1749432746277,12.36885298,152.69,152.66,2.43447163]
[1749432746479,12.36885298,152.69,152.67,2.4355615]
[1749432746683,12.36885298,152.69,152.66,2.43447163]
[1749432748185,12.36885298,152.69,152.67,2.43561684]
[1749432748388,12.36885298,152.69,152.66,2.43447163]
[1749432748688,12.36885298,152.68,152.67,2.43563311]
[1749432748894,12.36885298,152.68,152.66,2.43447163]
[1749432749206,12.36885298,152.69,152.66,2.43447163]
[1749432749791,12.36885298,152.68,152.66,2.43447163]
[1749432750325,12.36885298,152.67,152.66,2.43447163]
[1749432752301,18.9189283,152.67,152.66,2.43447163]
[1749432754413,12.36885298,152.67,152.66,2.43447163]
[1749432754595,18.9189283,152.67,152.66,2.43447163]
[1749432760419,39.5034003,152.67,152.66,2.43447163]
[1749432761014,44.38587291,152.67,152.66,2.43447163]
[1749432761195,25.45190091,152.67,152.66,2.43447163]
[1749432761909,26.0,152.69,152.66,2.43447163]
[1749432762215,38.36885298,152.69,152.66,2.43447163]
[1749432762794,44.91817236,152.69,152.66,2.43447163]
[1749432763206,12.36885298,152.67,152.66,2.43447163]
[1749432764119,32.54931938,152.69,152.66,2.43447163]
[1749432764294,12.36885298,152.67,152.66,2.43447163]
[1749432766728,18.9189283,152.67,152.66,2.43447163]
[1749432773211,42.73648706,152.67,152.66,2.43447163]
[1749432774510,26.0,152.64,152.55,18.68475298]
[1749432774818,12.36885298,152.56,152.52,12.36885298]
[1749432775121,26.0,152.62,152.54,12.36885298]
[1749432775122,12.36885298,152.58,152.54,12.36885298]
[1749432776236,12.36885298,152.58,152.54,18.92445913]
[1749432778939,12.36885298,152.58,152.51,65.96]
[1749432778940,12.36885298,152.57,152.53,6.55599529]
[1749432779114,12.36885298,152.56,152.53,6.55599529]
[1749432780138,12.36885298,152.56,152.52,6.55645102]
[1749432780430,12.36885298,152.54,152.51,26.0]
[1749432780648,12.36885298,152.56,152.51,38.36885298]
[1749432780813,12.36885298,152.56,152.51,26.0]
[1749432781014,12.36885298,152.56,152.51,38.36885298]
[1749432781321,12.36885298,152.53,152.5,6.55722335]
[1749432781635,26.0,152.58,152.52,12.36885298]
[1749432781822,38.36885298,152.58,152.53,12.36885298]
[1749432782142,12.36885298,152.57,152.52,18.92523566]
[1749432782718,32.5540378,152.58,152.52,18.92523566]
[1749432782719,12.36885298,152.56,152.52,18.92523566]
[1749432783819,12.36885298,152.56,152.51,6.55694708]
[1749432784021,12.36885298,152.56,152.52,12.36885298]
[1749432785331,12.36885298,152.56,152.51,18.92580006]
[1749432785633,12.36885298,152.54,152.51,6.55694708]
[1749432785832,12.36885298,152.52,152.49,10.32]
[1749432786168,12.36885298,152.52,152.48,6.55784946]
[1749432786343,12.36885298,152.51,152.47,6.558588]
[1749432787017,12.36885298,152.51,152.47,18.92744098]
[1749432787214,12.36885298,152.54,152.49,12.36885298]
[1749432787418,1.5651,152.56,152.48,12.36885298]
[1749432787419,12.36885298,152.53,152.48,12.36885298]
[1749432788018,12.36885298,152.52,152.48,18.92666027]
[1749432789930,12.36885298,152.53,152.48,18.92666027]
[1749432790136,12.36885298,152.53,152.49,12.36885298]
[1749432791051,12.36885298,152.54,152.49,12.36885298]
[1749432791225,6.55523918,152.55,152.5,6.55737704]
[1749432791226,12.36885298,152.53,152.5,6.55737704]
[1749432792436,12.36885298,152.56,152.52,12.36885298]
[1749432792631,22.68885298,152.57,152.53,12.36885298]
[1749432792957,158.46885298,152.58,152.53,12.36885298]
[1749432793547,12.36885298,152.57,152.53,12.36885298]
[1749432795147,12.36885298,152.57,152.52,18.92527875]
[1749432796348,12.36885298,152.57,152.51,58.92566102]
[1749432796349,12.36885298,152.56,152.51,58.92566102]
[1749432796647,12.36885298,152.53,152.49,46.55765349]
[1749432796846,12.36885298,152.5,152.46,10.32]
[1749432797049,12.36885298,152.51,152.47,2.43209902]
[1749432797240,12.36885298,152.52,152.48,14.80114151]
[1749432797440,6.55522779,152.55,152.5,12.36885298]
[1749432797441,12.36885298,152.55,152.5,12.36885298]
[1749432797642,146.1,152.58,152.52,12.36885298]
[1749432797845,12.36885298,152.57,152.52,12.36885298]
[1749432798549,12.36885298,152.56,152.52,12.36885298]
[1749432799239,12.36885298,152.56,152.52,18.92513614]
[1749432800253,18.92370232,152.56,152.52,12.36885298]
[1749432800438,12.36885298,152.54,152.48,26.0]
[1749432800647,12.36885298,152.53,152.49,38.36885298]
[1749432801185,12.36885298,152.53,152.48,58.92709012]
[1749432801764,12.36885298,152.53,152.49,12.36885298]
[1749432802933,12.36885298,152.53,152.49,18.92653013]
[1749432806065,12.36885298,152.54,152.49,18.92653013]
[1749432806235,40.0,152.57,152.52,12.36885298]
[1749432806236,12.36885298,152.56,152.52,12.36885298]
[1749432806557,6.55443035,152.57,152.53,12.36885298]
[1749432806558,12.36885298,152.57,152.53,12.36885298]
[1749432808038,12.36885298,152.57,152.53,18.92493504]
[1749432808272,18.92335809,152.57,152.52,18.92525567]
[1749432808687,12.36885298,152.56,152.52,18.92525567]
[1749432809880,18.92365197,152.56,152.51,52.36885298]
[1749432810046,12.36885298,152.55,152.51,52.36885298]
[1749432810979,12.36885298,152.55,152.51,40.0]
[1749432811288,12.36885298,152.55,152.51,46.55692646]
[1749432811739,12.36885298,152.55,152.51,58.92577944]
[1749432812283,12.36885298,152.55,152.51,52.36885298]
[1749432812781,12.36885298,152.55,152.51,58.92566061]
[1749432813458,12.36885298,152.56,152.51,58.92566061]
[1749432814059,18.92375298,152.56,152.51,58.92566061]
[1749432814479,12.36885298,152.55,152.51,40.0]
[1749432815275,12.36885298,152.55,152.52,2.43877043]
[1749432815577,12.36885298,152.54,152.49,58.92653531]
[1749432815772,18.92482673,152.54,152.49,12.36885298]
[1749432815978,12.36885298,152.53,152.5,2.43886166]
[1749432816278,12.36885298,152.53,152.49,18.92661207]
[1749432816480,18.92425415,152.55,152.51,12.36885298]
[1749432816685,18.92425415,152.55,152.52,2.43916855]
[1749432816862,18.92425415,152.55,152.51,12.36885298]